Cogmind - Beta 13 @@@ ROGUE MODE // 2024.04.15 @ 20:55:02 Player: SpaceWalrus Result: Destroyed by G-50 Soldier with Heavy Laser Performance ------------- Evolutions (2) 1000 Regions Visited (3) 600 Robots Destroyed (56) 280 Value Destroyed (1140) 1140 Prototype IDs (4) 80 Alien Tech Used (0) 0 Bonus (0) 0 TOTAL SCORE: 3100 Bonus ------- None Cogmind --------- Core Integrity 0/550 Matter 123/300 Energy 24/100 System Corruption 1% Temperature Cool (15) Movement Core (300) Ox5 Location -8/Materials Parts ------- > --- POWER (1) -------- (None) > --- PROPULSION (3) --- (None) > --- UTILITY (4) ------ Medium Storage Unit Improved Sensor Array Improved Signal Interpreter Hacking Suite > --- WEAPON (3) ------- Heavy EM Pulse Gun High-powered Shotgun > --- INVENTORY (10) --- Light Nuclear Core Improved Heat Sink Reaction Control System Improved Weapon Shielding Hacking Suite Assault Cannon Heavy Assault Cannon Peak State ------------ > --- POWER ------------ Light Nuclear Core > --- PROPULSION ------- Aluminum Leg Aluminum Leg Aluminum Leg > --- UTILITY ---------- Medium Storage Unit Improved Sensor Array Improved Signal Interpreter Hacking Suite > --- WEAPON ----------- Heavy Assault Rifle Heavy Assault Cannon > --- INVENTORY -------- Light Ion Engine Improved Heat Sink ECM Suite Reaction Control System Hacking Suite Heavy EM Pulse Gun Light Assault Rifle Assault Cannon Heavy Assault Cannon [Rating: 26] Favorites ----------- Power Light Ion Engine Engine Light Ion Engine Power Core Light Nuclear Core Propulsion Aluminum Leg Treads Light Treads Leg Aluminum Leg Flight Unit Cesium-ion Thruster Utility Medium Storage Unit Device Seismic Detector Storage Medium Storage Unit Processor Improved Signal Interpreter Hackware Hacking Suite Protection Light Armor Plating Weapon Medium Laser Energy Gun Medium Laser Ballistic Gun Heavy Assault Rifle Ballistic Cannon Heavy Assault Cannon Build | -11 -10 -10 -8 ------- Run | Yrd Mat Sub Mat Slots Evolved 4 | . . . 4 Power . | . . . . Propulsion 1 | . . . 1 Utility 2 | . . . 2 Weapon 1 | . . . 1 Parts Attached 44 | 8 9 7 20 Power 6 | 1 1 . 4 Engine 4 | 1 1 . 2 Core 2 | . . . 2 Reactor . | . . . . Propulsion 10 | 2 3 1 4 Treads 3 | . 3 . . Leg 6 | 2 . 1 3 Wheel . | . . . . Hover . | . . . . Flight 1 | . . . 1 Utility 15 | 3 5 1 6 Device 8 | 2 2 1 3 Storage 2 | 1 1 . . Processor 3 | . 2 . 1 Hackware 1 | . . . 1 Protection 1 | . . . 1 Artifact . | . . . . Weapon 13 | 2 . 5 6 Energy Gun 8 | 2 . 3 3 Energy Cannon . | . . . . Ballistic Gun 3 | . . 1 2 Ballistic Cannon 2 | . . 1 1 Launcher . | . . . . Special Weapon . | . . . . Impact Weapon . | . . . . Slashing Weapon . | . . . . Piercing Weapon . | . . . . Special Melee Weapon . | . . . . Unidentified Prototypes . | . . . . Parts Lost 17 | . 1 8 8 Power 2 | . . 1 1 Propulsion 6 | . 1 3 2 Utility 1 | . . . 1 Weapon 8 | . . 4 4 Highest Loss Streak 5 | . 1 4 5 To Critical Strikes . | . . . . Average Slot Usage (%) 88 | . 97 83 77 Engine 10 | . 14 13 3 Core 1 | . . . 4 Treads 5 | . 4 12 . Leg 15 | . 21 2 19 Device 13 | . 16 13 9 Storage 10 | . 10 14 9 Processor 3 | . 1 . 8 Hackware 1 | . . . 5 Energy Gun 16 | . 28 16 . Ballistic Gun 2 | . . 2 6 Ballistic Cannon 4 | . . 6 8 Naked Turns . | . . . . Heaviest Build 32 | 11 19 23 32 Greatest Support 40 | 20 40 40 30 Greatest Overweight (x) 7 | 1 1 7 5 Average Overweight (x) . | . . 1 1 Largest Inventory Capacity 10 | 8 10 10 10 Average Capacity 9 | 7 8 10 10 Most Carried 10 | 7 10 10 10 Average Carried 7 | 2 7 8 9 Final Capacity 10 | 5 10 10 10 Final Carried 10 | 3 10 7 8 Class Distribution -------------------- 59% | Mutant 18% | Scavenger-Mutant 16% | Scavenger-Skirmisher 5% | Skirmisher Dominant Class ---------------- Mutant | -10/Materials Mutant | -10/Subcaves Scavenger-Skirmisher | -8/Materials Resources | -11 -10 -10 -8 ----------- Run | Yrd Mat Sub Mat Matter Collected 1179 | 260 90 86 743 Remotely . | . . . . Salvage Created 1768 | 137 424 164 1043 Parts 97 | 4 33 11 49 Haulers Intercepted 4 | . 1 . 3 Recyclers Shooed 2 | . 1 . 1 Parts Field Recycled . | . . . . Retrieved Matter . | . . . . Parts Self-Destructed 6 | . . 6 . Prevented 1 | . . 1 . Kills | -11 -10 -10 -8 ------- Run | Yrd Mat Sub Mat Combat Hostiles Destroyed 28 | . 8 5 15 Guns 12 | . 8 4 . Cannons 16 | . . 1 15 Classes Destroyed 12 | 2 7 1 2 Worker 4 | . 2 . 2 Builder 4 | . 1 . 3 Tunneler 3 | 3 . . . Hauler 4 | . 1 . 3 Recycler 6 | 1 1 . 4 Operator 4 | . 2 . 2 Watcher 3 | . 2 . 1 Swarmer 10 | . 6 3 1 Grunt 12 | . 2 . 10 Duelist 1 | . . . 1 Sentry 3 | . . . 3 Subdweller 2 | . . 2 . Best Kill Streak 5 | 4 3 3 5 Combat Bots Only 4 | . 3 3 4 Max Kills in Single Turn 2 | 2 1 1 2 Gunslinging . | . . . . Exploded . | . . . . Melee . | . . . . Uniques/NPCs Destroyed . | . . . . Combat | -11 -10 -10 -8 -------- Run | Yrd Mat Sub Mat Hostile Shots Fired 290 | . 32 74 184 Missed 97 | . 12 24 61 Damage Taken 2828 | . 252 936 1640 Core 749 | . 35 155 559 Absorbed by Shields . | . . . . Core Remaining (%) 62 | 100 . 24 . Volleys Fired 159 | 10 46 24 79 Largest 2 | 2 2 2 2 Hottest 90 | 90 90 90 83 Shots Fired 284 | 20 86 43 135 Gun 207 | 20 86 39 62 Cannon 77 | . . 4 73 Launcher . | . . . . Special . | . . . . Kinetic 136 | . . 5 131 Thermal 120 | 20 86 13 1 Explosive . | . . . . Electromagnetic 28 | . . 25 3 Robot Hit Streak 6 | 4 6 6 6 Robot Miss Streak 5 | 3 4 5 5 Penetration Max 1 | . . . 1 Secondary Targets 1 | . 1 . . Max Gunslinging Chain 1 | . 1 . . Shots Hit Robots 158 | 10 44 28 76 Core Hits 73 | 5 23 8 37 Critical Kills . | . . . . Critical Parts Destroyed . | . . . . Critical Strikes 10 | 2 1 . 7 Burn 3 | 2 1 . . Blast 7 | . . . 7 Melee Attacks . | . . . . Impact . | . . . . Slashing . | . . . . Piercing . | . . . . Sneak Attacks . | . . . . Combat Hostiles . | . . . . Follow-up Attacks . | . . . . Damage Inflicted 3715 | 141 538 230 2806 Guns 1419 | 141 536 192 550 Cannons 2291 | . . 38 2253 Explosions . | . . . . Melee . | . . . . Ramming 5 | . 2 . 3 Kinetic 2824 | . . 62 2762 Thermal 745 | 141 536 57 11 Explosive . | . . . . Electromagnetic 141 | . . 111 30 Impact . | . . . . Slashing . | . . . . Piercing . | . . . . Highest Corruption 1 | . . . 1 Average Corruption 1 | . . . 1 Corruption Purged . | . . . . Corruption Blocked . | . . . . Effects 2 | . . . 2 Energy Discharges 1 | . . . 1 Data Loss (minor) 1 | . . . 1 Overload Shots . | . . . . Overflow Damage 175 | . . . 175 Projectiles 175 | . . . 175 Explosions . | . . . . Melee . | . . . . Knockbacks 5 | . . . 5 Impact . | . . . . Kinetic 5 | . . . 5 Secondary . | . . . . Self-Inflicted Damage . | . . . . Shots . | . . . . Rammed . | . . . . Targets Rammed 2 | . 1 . 1 Kicked 2 | . 1 . 1 Crushed . | . . . . Highest Temperature 202 | 172 202 . 124 Average Temperature 44 | 93 51 . 29 Received Heat Transfer 798 | . 42 144 612 Siege Activations . | . . . . Robots Corrupted . | . . . . Combat Hostiles . | . . . . Parts Fried 1 | . . 1 . Impact Corruptions . | . . . . Robots Melted . | . . . . Combat Hostiles . | . . . . Parts Melted 3 | 2 1 . . Heat Transferred 2205 | 532 1487 161 25 Parts Sabotaged . | . . . . Parts Stolen . | . . . . Parts Stripped . | . . . . Power Chain Reactions . | . . . . Alert | -11 -10 -10 -8 ------- Run | Yrd Mat Sub Mat Peak Influence 275 | 20 124 . 275 Initial 13 | . 13 . . Average 80 | 7 47 . 135 Maximum Alert Level 1 | . . . 1 Low Security (%) 94 | 100 100 . 84 Level 1 5 | . . . 15 Level 2 . | . . . . Level 3 . | . . . . Level 4 . | . . . . Level 5 . | . . . . High Security . | . . . . Max Security . | . . . . Squads Dispatched 5 | . 2 . 3 Investigation . | . . . . Extermination . | . . . . Reinforcement 5 | . 2 . 3 Assault . | . . . . Garrison . | . . . . Intercept . | . . . . Searches Triggered . | . . . . Construction Impeded 1 | . . . 1 Haulers Reinforced . | . . . . Active Scanning Responses . | . . . . Cargo Convoy Interrupts . | . . . . Stealth | -11 -10 -10 -8 --------- Run | Yrd Mat Sub Mat Distress Signals 3 | . 1 . 2 Communications Jammed . | . . . . Distress Signals . | . . . . Times Spotted 59 | . 17 10 32 Peak Tracking Total 7 | . 4 3 7 Tactical Retreats 1 | . . 1 . Traps | -11 -10 -10 -8 ------- Run | Yrd Mat Sub Mat Traps Triggered 2 | . 1 . 1 Indirectly . | . . . . Trap Hack Attempts . | . . . . Triggered . | . . . . Disarmed 1 | . . . 1 Reprogrammed . | . . . . Reused . | . . . . Traps Extracted . | . . . . Installed . | . . . . Triggered . | . . . . Machines | -11 -10 -10 -8 ---------- Run | Yrd Mat Sub Mat Machines Disabled 3 | . . . 3 Max in Single Turn 1 | . . . 1 Machines Repaired . | . . . . Machines Dismantled . | . . . . Machines Sabotaged . | . . . . Overloaded Fab Kills . | . . . . Hacking | -11 -10 -10 -8 --------- Run | Yrd Mat Sub Mat Machines Accessed 4 | . 2 . 2 Terminals 4 | . 2 . 2 Fabricators . | . . . . Repair Stations . | . . . . Recycling Units . | . . . . Scanalyzers . | . . . . Garrison Access . | . . . . Total Hacks 12 | . 7 . 5 Successful 9 | . 5 . 4 Failed 3 | . 2 . 1 Catastrophic . | . . . . Database Lockouts . | . . . . Manual . | . . . . Terminals 12 | . 7 . 5 Fabricators . | . . . . Repair Stations . | . . . . Recycling Units . | . . . . Scanalyzers . | . . . . Garrison Access . | . . . . Terminal Hacks 9 | . 5 . 4 Prototype ID Bank 2 | . 1 . 1 Branch Access Points 1 | . . . 1 Alert Level 3 | . 2 . 1 Disarm Traps 1 | . . . 1 Reinforcement Status 1 | . 1 . . Zone Layout 1 | . 1 . . Fabricator Hacks . | . . . . Repair Station Hacks . | . . . . Recycling Unit Hacks . | . . . . Scanalyzer . | . . . . Garrison Access Hacks . | . . . . Unauthorized Hacks . | . . . . Terminals . | . . . . Fabricators . | . . . . Repair Stations . | . . . . Recycling Units . | . . . . Scanalyzers . | . . . . Garrison Access . | . . . . Data Cores Recovered . | . . . . Used . | . . . . Hacking Detections 2 | . . . 2 Full Trace Events 1 | . . . 1 Feedback Events . | . . . . Feedback Blocked . | . . . . Robot Schematics Acquired . | . . . . Robots Built . | . . . . Authchips . | . . . . Time . | . . . . Total Robot Build Rating . | . . . . Part Schematics Acquired . | . . . . Parts Built . | . . . . Authchips . | . . . . Time . | . . . . Total Part Build Rating . | . . . . Parts Repaired . | . . . . Time . | . . . . Parts Recycled . | . . . . Recycled Matter . | . . . . Retrieved Matter . | . . . . Retrieved Components . | . . . . Parts Scanalyzed . | . . . . Part Schematics Acquired . | . . . . Parts Damaged . | . . . . Bothacking | -11 -10 -10 -8 ------------ Run | Yrd Mat Sub Mat Used RIF Installer . | . . . . Robots Hacked . | . . . . Non-combat . | . . . . Combat . | . . . . Robot Hacks Applied . | . . . . Relay Couplers Released . | . . . . Fabnet Peak Effective % . | . . . . Robots Rewired . | . . . . Allies Hacked . | . . . . Hacks Repelled . | . . . . Allies | -11 -10 -10 -8 -------- Run | Yrd Mat Sub Mat Total Allies . | . . . . Largest Group . | . . . . Highest-Rated Group . | . . . . Highest-Rated Ally . | . . . . Total Orders . | . . . . Ally Attacks . | . . . . Total Damage . | . . . . Kills . | . . . . Allies Corrupted . | . . . . Allies Melted . | . . . . Intel | -11 -10 -10 -8 ------- Run | Yrd Mat Sub Mat Robot Analysis Total . | . . . . Derelict Logs Recovered . | . . . . Drone Launches . | . . . . Drone Recoveries . | . . . . Exploration | -11 -10 -10 -8 ------------- Run | Yrd Mat Sub Mat Turns Passed 3476 | 80 1506 890 1000 Spaces Moved 1702 | 36 943 373 350 Core 125 | 19 . 89 17 Treads 356 | . 141 215 . Legs 1212 | 17 802 69 324 Wheels . | . . . . Hover . | . . . . Flight 9 | . . . 9 Fastest Speed 50 | 50 120 160 120 Average Speed 165 | 90 135 218 200 Slowest Speed 435 | 120 190 400 435 Overloaded Moves . | . . . . Propulsion Burnouts . | . . . . Robots Hopped . | . . . . Cave-ins Triggered . | . . . . Exploration Rate (%) 36 | 3 77 26 38 Regions Visited 3 Branch Regions 1 Pre-discovered Areas . | . . . . Known Exits Taken 1 | . 1 . . Unknown Exits Taken 2 | 1 . 1 . Scrap Searched . | . . . . Spaces Dug . | . . . . Terrain Destroyed 30 | . . . 30 Melee . | . . . . Projectile 30 | . . . 30 AOE . | . . . . Terrain Rammed . | . . . . Walls Destroyed . | . . . . Machines Disabled . | . . . . Actions | -11 -10 -10 -8 --------- Run | Yrd Mat Sub Mat Total 2039 | 62 1091 405 481 Wait 70 | . 67 . 3 Move 1699 | 35 942 372 350 Hop . | . . . . Pick Up 43 | 9 15 2 17 Fast Attach 5 | 1 2 . 2 Attach 22 | 6 1 4 11 Detach . | . . . . Swap 17 | 1 6 3 7 Drop 22 | . 11 . 11 Fire 159 | 10 46 24 79 Melee . | . . . . Ram . | . . . . Kick 2 | . 1 . 1 Crush . | . . . . Escape Stasis . | . . . . Rewire . | . . . . Trap . | . . . . Miscellaneous . | . . . . Route ------- -11/Scrapyard -10/Materials (discovered 4 exits: *Mat x2 / *Min / *Sub) -10/Subcaves -8/Materials (discovered 1 exit: *Sto) History --------- Turn | Location | Event 5 | -11/Scrapyard | Discovered new exit (range 16) 81 | -11/Scrapyard | Entered Materials 137 | -10/Materials | Discovered new exit (range 8) 283 | -10/Materials | Discovered new exit (range 16) 300 | -10/Materials | Build established: Mutant 390 | -10/Materials | Identified exit to Materials 465 | -10/Materials | Identified exit to Mines 1071 | -10/Materials | Discovered exit to Materials (range 16) 1557 | -10/Materials | Discovered new exit (range 12) 1584 | -10/Materials | Identified exit to Subcaves 1587 | -10/Materials | Entered Subcaves 1657 | -10/Subcaves | Discovered new exit (range 15) 1670 | -10/Subcaves | Build established: Scavenger-Mutant 1845 | -10/Subcaves | Shifting Twisted Machinery released Piercing Trap 1956 | -10/Subcaves | Shifting Twisted Machinery released Scrap Shield 2028 | -10/Subcaves | Lost 4 parts (2n2w) 2287 | -10/Subcaves | Build established: Mutant 2426 | -10/Subcaves | Core integrity fell below 50% 2477 | -10/Subcaves | Entered Materials 2477 | -8/Materials | Evolved 4 slots: Propulsion x1, Utility x2, Weapon x1 2521 | -8/Materials | Core integrity fell below 50% 3132 | -8/Materials | Discovered new exit (range 5) 3154 | -8/Materials | Identified exit to Storage 3189 | -8/Materials | Build established: Scavenger-Skirmisher 3458 | -8/Materials | Core integrity fell below 20% 3477 | -8/Materials | Destroyed by G-50 Soldier with Heavy Laser Last Messages --------------- K-01 Serf collects debris. Hvy. Assault Cannon destroyed. K-01 Serf collects debris. Critical hit (Burn: +37). R-06 Scavenger collects Backup Propulsion I. U-05 Engineer builds a Wall. Lgt. Nuclear Core destroyed. Hvy. Assault Rifle destroyed. R-06 Scavenger collects Backup Power I. K-01 Serf collects debris. R-06 Scavenger collects Backup Power I. K-01 Serf collects debris. U-05 Engineer builds a Wall. Critical hit (Burn: +37). K-01 Serf collects debris. Aluminum Leg destroyed. R-06 Scavenger collects Backup Propulsion I. G-50 Soldier misfires. K-01 Serf collects debris. U-05 Engineer builds a Wall. Map ----- +----------------------------------------------------+ | ?????????????????????????????????????????????????? | | ?????????????????????????????????????????????????? | | ?????????????????????????????????????????????????? | | ?????????????????????????????????????????????????? | | ?????????????????????????????????????????????????? | | ?????????????????????????????????????????????????? | | ?????????????????????????????????????????????????? | | ?????????????????????????????????????????????????? | | ?????????????????????????????????????????????????? | | ?????????????????????????????????????????????????? | | ?????????????????????????????????????????????????? | | ??????????????????????????????? ???????????????? | | ?????????????????????????????? ?????????????? | | ?????????????????????????????? ????????????? | | ??????????????????????#??????? ?????????????? | | ??????????????????????" ?????# ? ??????????? | | ??????????????????????#%##??#" " ??????????? | | ??????????????????????# ###### T ??????????? | | ??????????????????????#%= uu " ???????????? | | ??????????????????????? % ==![ ?????????????? | | ????????????????????????! =%[% ???????????????? | | ???????????????????????##% !k[[;#????????????????? | | ????????????? ?????????#; g=[%!;#????????????????? | | ????????????????????????#*=!%= #?????????????????? | | ##?????????????#+##?????# *=[ %#?????????????????? | | #########+##### ########@!a #?????????????????? | | gw[* #?????????????????? | | k%[[% #?????????????????? | | r [!T #?????????????????? | | %k= #?????????????????? | | "" =!! =/* #?????????????????? | | """""" =!! #?????????????????? | | """ !!! #?????????????????? | | #?????????????????? | | t #?????????????????? | | #######/################# #?????????????????? | | #?# ##??????????## #?????????????????? | | #?# """ ! #???????????# #?????????????????? | | #?#="R" ##???????????? #?????????????????? | | ### " """ #????????????? #?????????????????? | | +! %""" #????????????? #?????????????????? | | ### / """ #????????????? #?????????????????? | | #?# #????????????? #?????????????????? | | #?# [ #????????????? ?????????????????? | | #?######+####????????????? ??????????????????? | | ######## # #??????????????? ????????????????????? | | #???????????????????????????????????? | | ########## #????????????????????????????????????? | | #????????? ?????????????????????????????????????? | | #####???????#????????????????????????????????????? | +----------------------------------------------------+ Best States ------------- Heat Dissipation 31 Energy Generation 14 Energy Capacity 250 Matter Stores 300 Matter Capacity 300 Sight Range 16 Robot Scan Range 15 Terrain Scan Range 16 Terrain Scan Density 10 Armor Coverage 150 Evasion (%) 55 Recoil Reduction 2 Offensive Hacking 10 Item Schematics ----------------- None Robot Schematics ------------------ None Fabricated ------------ Nothing Alien Tech Used ----------------- None Achievements -------------- None Challenges ------------ None Game ------ Seed GyrokineticScrapSword Manual? 0 Play Time 00:22:58 Cumulative 22.7 hours Start 2024.04.15 @ 20:32:19 End 2024.04.15 @ 20:55:02 Sessions 1 Manual Loads 0 Difficulty Rogue Special Mode None Game No. 27 Rogue 27 Adventurer 0 Explorer 0 Win Type - Total 0 Types 0/0/0/0/0/0/0/0/0 Lore% 19 Gallery% 33 Achievement% 20 Wizard Run 0 Options --------- Layout 1 ASCII 0 Keyboard 0 Movement Numpad Keybinds 0 Fullscreen 1 Font 24/Smallcaps Map View 50x40 Zoom Use 0% Tactical HUD 0 Map Filters NONE Filters NONE Steam 1 RUN: e8c5abc0-3b82-44fc-aaba-f7aa4d5e5ae1